[Event "Late-Titled-Tuesday-Blitz-July-09-2024"]
[Site "Chess.com"]
[Date "2024.07.09"]
[Round "10"]
[White "subham777"]
[Black "scrambleyourbrain"]
[Result "1-0"]
[WhiteElo "2569"]
[BlackElo "2379"]
[TimeControl "180+1"]
[EndTime "15:52:43 PDT"]
[Termination "subham777 won by resignation"]

1. e4 {[%clk 0:03:00.9]} 1... c5 {[%clk 0:02:59]} 2. Nf3 {[%clk 0:02:59.8]} 2...
d6 {[%clk 0:02:59.4]} 3. d4 {[%clk 0:02:59.9]} 3... cxd4 {[%clk 0:02:59.8]} 4.
Qxd4 {[%clk 0:03:00.8]} 4... a6 {[%clk 0:02:59.2]} 5. Nc3 {[%clk 0:03:00.6]}
5... Nc6 {[%clk 0:02:59.1]} 6. Qd2 {[%clk 0:03:01.3]} 6... Nf6 {[%clk 0:02:59]}
7. b3 {[%clk 0:03:01.2]} 7... g6 {[%clk 0:02:59.3]} 8. Bb2 {[%clk 0:03:01.6]}
8... Bg7 {[%clk 0:02:59.8]} 9. O-O-O {[%clk 0:03:01.9]} 9... O-O {[%clk
0:02:58.3]} 10. Kb1 {[%clk 0:02:59.6]} 10... Be6 {[%clk 0:02:50.5]} 11. Ng5
{[%clk 0:02:56.7]} 11... Bg4 {[%clk 0:02:48.7]} 12. f3 {[%clk 0:02:56.7]} 12...
Bd7 {[%clk 0:02:49.3]} 13. h4 {[%clk 0:02:54.8]} 13... h6 {[%clk 0:02:42]} 14.
Nh3 {[%clk 0:02:54.5]} 14... Nh5 {[%clk 0:02:41.4]} 15. g4 {[%clk 0:02:52.2]}
15... Ng3 {[%clk 0:02:40.6]} 16. Rg1 {[%clk 0:02:52.5]} 16... Nxf1 {[%clk
0:02:40.8]} 17. Rdxf1 {[%clk 0:02:51.9]} 17... Ne5 {[%clk 0:02:39.1]} 18. h5
{[%clk 0:02:39.3]} 18... e6 {[%clk 0:02:35]} 19. f4 {[%clk 0:02:32]} 19... Nc6
{[%clk 0:02:32.5]} 20. g5 {[%clk 0:02:30.5]} 20... e5 {[%clk 0:02:25.7]} 21.
hxg6 {[%clk 0:02:20.2]} 21... Bxh3 {[%clk 0:02:16.9]} 22. gxh6 {[%clk
0:02:12.6]} 22... Bxh6 {[%clk 0:02:14.3]} 23. gxf7+ {[%clk 0:02:08.2]} 23... Kh7
{[%clk 0:02:07.5]} 24. Rf3 {[%clk 0:01:57.8]} 24... Be6 {[%clk 0:01:26.2]} 25.
Rh1 {[%clk 0:01:44.1]} 25... Rxf7 {[%clk 0:01:07.5]} 26. f5 {[%clk 0:01:34.6]}
26... Qf8 {[%clk 0:00:53]} 27. Rfh3 {[%clk 0:01:30.8]} 27... Rf6 {[%clk
0:00:52.5]} 28. fxe6 {[%clk 0:01:23.2]} 28... Ne7 {[%clk 0:00:44.7]} 29. Qxd6
{[%clk 0:01:11.9]} 29... Ng8 {[%clk 0:00:18.1]} 30. Qd7+ {[%clk 0:01:03.4]}
30... Qe7 {[%clk 0:00:16.7]} 31. Nd5 {[%clk 0:00:58.9]} 1-0

[Event "Late-Titled-Tuesday-Blitz-July-09-2024"]
[Site "Chess.com"]
[Date "2024.07.09"]
[Round "10"]
[White "vova-79"]
[Black "AlphaPerseii"]
[Result "0-1"]
[WhiteElo "2457"]
[BlackElo "2396"]
[TimeControl "180+1"]
[EndTime "15:52:47 PDT"]
[Termination "AlphaPerseii won by resignation"]

1. d4 {[%clk 0:02:55.1]} 1... Nf6 {[%clk 0:02:59.9]} 2. c4 {[%clk 0:02:54.6]}
2... e6 {[%clk 0:03:00.3]} 3. g3 {[%clk 0:02:54.7]} 3... d5 {[%clk 0:02:59.8]}
4. Nf3 {[%clk 0:02:54.4]} 4... Bb4+ {[%clk 0:03:00.1]} 5. Bd2 {[%clk 0:02:54.1]}
5... Be7 {[%clk 0:03:00.8]} 6. Bg2 {[%clk 0:02:53.1]} 6... O-O {[%clk
0:03:01.4]} 7. O-O {[%clk 0:02:50.3]} 7... Nbd7 {[%clk 0:03:01.8]} 8. Qc2 {[%clk
0:02:27.1]} 8... Ne4 {[%clk 0:03:00.6]} 9. Bf4 {[%clk 0:02:11.3]} 9... c6 {[%clk
0:03:00.6]} 10. Nc3 {[%clk 0:02:04.5]} 10... g5 {[%clk 0:03:00.8]} 11. Be3
{[%clk 0:02:03.3]} 11... Nd6 {[%clk 0:02:58]} 12. cxd5 {[%clk 0:02:01.4]} 12...
exd5 {[%clk 0:02:57.5]} 13. Ne5 {[%clk 0:02:00.8]} 13... Nxe5 {[%clk 0:02:42.6]}
14. dxe5 {[%clk 0:02:01.7]} 14... Bf5 {[%clk 0:02:42.7]} 15. Qb3 {[%clk
0:01:59.1]} 15... Nc4 {[%clk 0:02:36.8]} 16. Bc1 {[%clk 0:01:57.5]} 16... Qb6
{[%clk 0:02:21.8]} 17. e4 {[%clk 0:01:52.8]} 17... Be6 {[%clk 0:02:05.4]} 18.
exd5 {[%clk 0:01:51]} 18... cxd5 {[%clk 0:02:05]} 19. Nxd5 {[%clk 0:01:47]}
19... Bxd5 {[%clk 0:02:03]} 20. Bxd5 {[%clk 0:01:47.9]} 20... Nxe5 {[%clk
0:01:57.4]} 21. Qxb6 {[%clk 0:01:42.9]} 21... axb6 {[%clk 0:01:55.5]} 22. Bxb7
{[%clk 0:01:40]} 22... Ra7 {[%clk 0:01:56]} 23. Bg2 {[%clk 0:01:36.2]} 23... f6
{[%clk 0:01:54.7]} 24. Rd1 {[%clk 0:01:30]} 24... Bc5 {[%clk 0:01:53.3]} 25. h3
{[%clk 0:01:19.3]} 25... Re8 {[%clk 0:01:38.6]} 26. Kf1 {[%clk 0:01:17.8]} 26...
Rae7 {[%clk 0:01:31.5]} 27. a3 {[%clk 0:01:13.4]} 27... Nd3 {[%clk 0:01:29.9]}
28. Bd5+ {[%clk 0:01:09.5]} 28... Kg7 {[%clk 0:01:29.1]} 29. Rxd3 {[%clk
0:01:09.6]} 29... Re1+ {[%clk 0:01:29.3]} 30. Kg2 {[%clk 0:01:09.8]} 30... R8e2
{[%clk 0:01:29.1]} 31. Be3 {[%clk 0:01:04.5]} 31... Rxa1 {[%clk 0:01:25.3]} 32.
Bxc5 {[%clk 0:00:59.9]} 32... bxc5 {[%clk 0:01:26.2]} 33. Rb3 {[%clk 0:00:53.1]}
33... Rc1 {[%clk 0:01:19.5]} 34. Bf3 {[%clk 0:00:42.2]} 34... Rd2 {[%clk
0:01:18.5]} 35. Rb7+ {[%clk 0:00:41.7]} 35... Kf8 {[%clk 0:01:12.9]} 36. Be4
{[%clk 0:00:40.1]} 36... Re1 {[%clk 0:01:04.7]} 37. Bf3 {[%clk 0:00:27.6]} 37...
Rb1 {[%clk 0:01:04]} 0-1

[Event "Late-Titled-Tuesday-Blitz-July-09-2024"]
[Site "Chess.com"]
[Date "2024.07.09"]
[Round "10"]
[White "mbojan"]
[Black "GHANDEEVAM2003"]
[Result "0-1"]
[WhiteElo "2921"]
[BlackElo "3176"]
[TimeControl "180+1"]
[EndTime "15:52:55 PDT"]
[Termination "GHANDEEVAM2003 won on time"]

1. d4 {[%clk 0:03:00.9]} 1... Nf6 {[%clk 0:03:00]} 2. Bg5 {[%clk 0:03:00.2]}
2... b6 {[%clk 0:02:59.7]} 3. Nd2 {[%clk 0:02:59.7]} 3... Bb7 {[%clk 0:02:57.2]}
4. Ngf3 {[%clk 0:02:59.5]} 4... g6 {[%clk 0:02:54.5]} 5. Bxf6 {[%clk 0:02:41.7]}
5... exf6 {[%clk 0:02:55.4]} 6. g3 {[%clk 0:02:41.4]} 6... Bg7 {[%clk
0:02:54.8]} 7. Bg2 {[%clk 0:02:41.4]} 7... f5 {[%clk 0:02:55]} 8. O-O {[%clk
0:02:41.1]} 8... O-O {[%clk 0:02:55.1]} 9. e3 {[%clk 0:02:40.7]} 9... c5 {[%clk
0:02:54.2]} 10. c3 {[%clk 0:02:39]} 10... Re8 {[%clk 0:02:53.9]} 11. Ne1 {[%clk
0:02:38.5]} 11... Nc6 {[%clk 0:02:47.2]} 12. Nd3 {[%clk 0:02:35.9]} 12... d6
{[%clk 0:02:44]} 13. h4 {[%clk 0:02:24.7]} 13... Qd7 {[%clk 0:02:39.8]} 14. Nf4
{[%clk 0:02:24.2]} 14... Rad8 {[%clk 0:02:37.3]} 15. Bd5 {[%clk 0:02:17]} 15...
Bh6 {[%clk 0:02:32.1]} 16. Qf3 {[%clk 0:01:41.6]} 16... Bxf4 {[%clk 0:02:25]}
17. gxf4 {[%clk 0:01:42.5]} 17... Rc8 {[%clk 0:02:11.1]} 18. Kg2 {[%clk
0:01:39.3]} 18... Ba6 {[%clk 0:02:07.3]} 19. Rh1 {[%clk 0:00:58.5]} 19... Ne7
{[%clk 0:02:05.6]} 20. Bb3 {[%clk 0:00:47.2]} 20... c4 {[%clk 0:02:04.9]} 21.
Bc2 {[%clk 0:00:47.5]} 21... Bb7 {[%clk 0:01:56.6]} 22. e4 {[%clk 0:00:47.6]}
22... h5 {[%clk 0:01:49.2]} 23. Rae1 {[%clk 0:00:43.4]} 23... Qb5 {[%clk
0:01:48.5]} 24. Rb1 {[%clk 0:00:20.4]} 24... Kg7 {[%clk 0:01:48.4]} 25. Rhe1
{[%clk 0:00:20.4]} 25... Ng8 {[%clk 0:01:39]} 26. Qg3 {[%clk 0:00:13.2]} 26...
fxe4 {[%clk 0:01:31.3]} 27. Bxe4 {[%clk 0:00:14.1]} 27... Rxe4 {[%clk
0:01:31.6]} 28. Nxe4 {[%clk 0:00:14.4]} 28... f5 {[%clk 0:01:30.7]} 29. f3
{[%clk 0:00:15]} 29... fxe4 {[%clk 0:01:29.8]} 30. fxe4 {[%clk 0:00:15.9]} 30...
Nf6 {[%clk 0:01:29.2]} 31. d5 {[%clk 0:00:15.6]} 31... Nxe4 {[%clk 0:01:23.8]}
32. Rxe4 {[%clk 0:00:15.7]} 32... Qxd5 {[%clk 0:01:13.8]} 33. Re1 {[%clk
0:00:16.3]} 33... Re8 {[%clk 0:01:14]} 0-1

[Event "Late-Titled-Tuesday-Blitz-July-09-2024"]
[Site "Chess.com"]
[Date "2024.07.09"]
[Round "10"]
[White "noblerone"]
[Black "NovakRatko"]
[Result "1-0"]
[WhiteElo "2472"]
[BlackElo "2345"]
[TimeControl "180+1"]
[EndTime "15:53:01 PDT"]
[Termination "noblerone won by resignation"]

1. d4 {[%clk 0:03:00.9]} 1... d5 {[%clk 0:02:52.4]} 2. c4 {[%clk 0:02:54]} 2...
c5 {[%clk 0:02:52.6]} 3. cxd5 {[%clk 0:02:52.3]} 3... Qxd5 {[%clk 0:02:53.5]} 4.
dxc5 {[%clk 0:02:49]} 4... Qxd1+ {[%clk 0:02:52.7]} 5. Kxd1 {[%clk 0:02:49.9]}
5... e5 {[%clk 0:02:53.2]} 6. Be3 {[%clk 0:02:50.2]} 6... Nc6 {[%clk 0:02:53.4]}
7. a3 {[%clk 0:02:48.4]} 7... a5 {[%clk 0:02:52.6]} 8. Nc3 {[%clk 0:02:48.4]}
8... Be6 {[%clk 0:02:52.9]} 9. g3 {[%clk 0:02:45]} 9... f5 {[%clk 0:02:46.4]}
10. Bg2 {[%clk 0:02:43]} 10... e4 {[%clk 0:02:45.3]} 11. Nh3 {[%clk 0:02:38.7]}
11... Bb3+ {[%clk 0:02:44.2]} 12. Ke1 {[%clk 0:02:38.3]} 12... h6 {[%clk
0:02:39.7]} 13. Nf4 {[%clk 0:02:37.2]} 13... Nge7 {[%clk 0:02:39.1]} 14. h4
{[%clk 0:02:36.2]} 14... g6 {[%clk 0:02:36.8]} 15. f3 {[%clk 0:02:30.7]} 15...
exf3 {[%clk 0:02:35.4]} 16. Bxf3 {[%clk 0:02:25]} 16... Bg7 {[%clk 0:02:35.6]}
17. Kf2 {[%clk 0:02:19.6]} 17... O-O-O {[%clk 0:02:26.4]} 18. Nb5 {[%clk
0:02:04.9]} 18... Rd7 {[%clk 0:01:59.9]} 19. Nd3 {[%clk 0:01:45.1]} 19... Kb8
{[%clk 0:01:46.2]} 20. Bf4+ {[%clk 0:01:41.6]} 20... Ka8 {[%clk 0:01:42]} 21.
Rac1 {[%clk 0:01:41.2]} 21... Nd5 {[%clk 0:01:30.4]} 22. Bxd5 {[%clk 0:01:38.2]}
22... Bxd5 {[%clk 0:01:23.2]} 23. Nc7+ {[%clk 0:01:32]} 23... Ka7 {[%clk
0:01:21.3]} 24. Nxd5 {[%clk 0:01:31.7]} 24... Rxd5 {[%clk 0:01:21]} 25. b4
{[%clk 0:01:24]} 25... Re8 {[%clk 0:01:16.2]} 26. Rhd1 {[%clk 0:01:03.4]} 26...
Nd4 {[%clk 0:01:06.7]} 27. e3 {[%clk 0:01:03.1]} 27... Ne6 {[%clk 0:01:04.7]}
28. Ne1 {[%clk 0:00:55.6]} 28... Rxd1 {[%clk 0:01:03.6]} 29. Rxd1 {[%clk
0:00:56.5]} 29... g5 {[%clk 0:01:03.7]} 30. Bd6 {[%clk 0:00:54.2]} 30... gxh4
{[%clk 0:00:59.9]} 31. gxh4 {[%clk 0:00:55.1]} 31... Bf6 {[%clk 0:00:56.5]} 32.
Nf3 {[%clk 0:00:54.3]} 32... Bb2 {[%clk 0:00:56.5]} 33. Rd3 {[%clk 0:00:49.8]}
33... Ka6 {[%clk 0:00:55.8]} 34. Nd4 {[%clk 0:00:43.9]} 34... Nxd4 {[%clk
0:00:51.9]} 35. exd4 {[%clk 0:00:43.8]} 35... Kb5 {[%clk 0:00:51.9]} 36. bxa5
{[%clk 0:00:42.3]} 36... Re4 {[%clk 0:00:45.3]} 37. Be5 {[%clk 0:00:41.5]} 37...
Rxh4 {[%clk 0:00:41.3]} 38. Rb3+ {[%clk 0:00:41.5]} 38... Kxa5 {[%clk
0:00:40.3]} 39. Rxb2 {[%clk 0:00:41.7]} 39... Rh2+ {[%clk 0:00:39.2]} 40. Bxh2
{[%clk 0:00:41.2]} 1-0

[Event "Late-Titled-Tuesday-Blitz-July-09-2024"]
[Site "Chess.com"]
[Date "2024.07.09"]
[Round "10"]
[White "Michalczak"]
[Black "jcmesafischer"]
[Result "1-0"]
[WhiteElo "2499"]
[BlackElo "2355"]
[TimeControl "180+1"]
[EndTime "15:53:06 PDT"]
[Termination "Michalczak won on time"]

1. e4 {[%clk 0:03:00.9]} 1... c5 {[%clk 0:02:57]} 2. c3 {[%clk 0:03:00.7]} 2...
d5 {[%clk 0:02:56.4]} 3. exd5 {[%clk 0:03:00.3]} 3... Nf6 {[%clk 0:02:19.3]} 4.
Bb5+ {[%clk 0:02:55.9]} 4... Nbd7 {[%clk 0:02:12.6]} 5. d4 {[%clk 0:02:53.7]}
5... cxd4 {[%clk 0:02:02.7]} 6. Qxd4 {[%clk 0:02:54.6]} 6... a6 {[%clk
0:02:02.9]} 7. Bc4 {[%clk 0:02:47.5]} 7... b5 {[%clk 0:02:02.5]} 8. Bb3 {[%clk
0:02:47.4]} 8... Bb7 {[%clk 0:02:02.5]} 9. Be3 {[%clk 0:02:29.6]} 9... Rc8
{[%clk 0:01:41.6]} 10. Na3 {[%clk 0:02:18.9]} 10... Nc5 {[%clk 0:01:38.7]} 11.
Nf3 {[%clk 0:02:06.9]} 11... Nxb3 {[%clk 0:01:26.2]} 12. axb3 {[%clk 0:02:07.8]}
12... Qxd5 {[%clk 0:01:24.4]} 13. O-O {[%clk 0:02:02.3]} 13... e6 {[%clk
0:01:18.5]} 14. Qb6 {[%clk 0:01:47.9]} 14... Nd7 {[%clk 0:01:09]} 15. Qa7 {[%clk
0:01:46.6]} 15... Ra8 {[%clk 0:01:02.4]} 16. Qd4 {[%clk 0:01:46.4]} 16... Qxb3
{[%clk 0:01:01.8]} 17. Rfd1 {[%clk 0:01:41.7]} 17... Nf6 {[%clk 0:00:39.8]} 18.
Qb6 {[%clk 0:01:17]} 18... Bd5 {[%clk 0:00:10.9]} 19. Rd2 {[%clk 0:01:02.1]}
19... Nd7 {[%clk 0:00:07.7]} 20. Qd4 {[%clk 0:01:00.4]} 20... b4 {[%clk
0:00:04.3]} 21. Nb5 {[%clk 0:00:50]} 21... axb5 {[%clk 0:00:03.4]} 22. Rxa8+
{[%clk 0:00:48.7]} 22... Ke7 {[%clk 0:00:04]} 23. Ra7 {[%clk 0:00:38.8]} 23...
bxc3 {[%clk 0:00:02.1]} 24. bxc3 {[%clk 0:00:35.9]} 24... Qc4 {[%clk 0:00:02.3]}
25. Rxd7+ {[%clk 0:00:33.6]} 1-0

[Event "Late-Titled-Tuesday-Blitz-July-09-2024"]
[Site "Chess.com"]
[Date "2024.07.09"]
[Round "10"]
[White "TC2304"]
[Black "cthulhuuu"]
[Result "0-1"]
[WhiteElo "2350"]
[BlackElo "2476"]
[TimeControl "180+1"]
[EndTime "15:53:06 PDT"]
[Termination "cthulhuuu won on time"]

1. d4 {[%clk 0:03:00.9]} 1... Nf6 {[%clk 0:02:55.3]} 2. Nf3 {[%clk 0:03:01.3]}
2... g6 {[%clk 0:02:55.4]} 3. b3 {[%clk 0:02:58.1]} 3... Bg7 {[%clk 0:02:55.5]}
4. Bb2 {[%clk 0:02:58.7]} 4... O-O {[%clk 0:02:56.2]} 5. g3 {[%clk 0:02:56.9]}
5... d6 {[%clk 0:02:56.3]} 6. Bg2 {[%clk 0:02:57.5]} 6... Nbd7 {[%clk
0:02:56.1]} 7. O-O {[%clk 0:02:57.5]} 7... e5 {[%clk 0:02:56.7]} 8. c4 {[%clk
0:02:47.4]} 8... Re8 {[%clk 0:02:50.4]} 9. Nc3 {[%clk 0:02:43.8]} 9... e4 {[%clk
0:02:49.1]} 10. Ng5 {[%clk 0:02:40.6]} 10... e3 {[%clk 0:02:45.5]} 11. fxe3
{[%clk 0:02:35.6]} 11... h6 {[%clk 0:02:06.8]} 12. Nge4 {[%clk 0:02:23.7]} 12...
Nxe4 {[%clk 0:02:02.8]} 13. Nxe4 {[%clk 0:02:23.9]} 13... f5 {[%clk 0:02:02.6]}
14. Nc3 {[%clk 0:02:19.3]} 14... Rxe3 {[%clk 0:02:01]} 15. Qd2 {[%clk
0:02:10.6]} 15... Re8 {[%clk 0:01:52.3]} 16. e4 {[%clk 0:02:10.1]} 16... Nf6
{[%clk 0:01:44.4]} 17. Rae1 {[%clk 0:01:54.9]} 17... c6 {[%clk 0:01:40.7]} 18.
exf5 {[%clk 0:01:42.6]} 18... Bxf5 {[%clk 0:01:41.6]} 19. Rxe8+ {[%clk
0:01:21.4]} 19... Qxe8 {[%clk 0:01:42.5]} 20. Re1 {[%clk 0:01:21.9]} 20... Qd7
{[%clk 0:01:42.7]} 21. Ba3 {[%clk 0:01:03.1]} 21... Re8 {[%clk 0:01:03.3]} 22.
Rxe8+ {[%clk 0:01:00.2]} 22... Nxe8 {[%clk 0:01:04.2]} 23. Ne4 {[%clk
0:00:56.3]} 23... b6 {[%clk 0:01:00.8]} 24. h3 {[%clk 0:00:39.4]} 24... d5
{[%clk 0:00:57.9]} 25. cxd5 {[%clk 0:00:36.7]} 25... cxd5 {[%clk 0:00:58.2]} 26.
Nc3 {[%clk 0:00:34.4]} 26... Bxh3 {[%clk 0:00:51.2]} 27. Bxd5+ {[%clk
0:00:27.8]} 27... Kh7 {[%clk 0:00:51.6]} 28. Bf3 {[%clk 0:00:02.6]} 28... Bxd4+
{[%clk 0:00:47.1]} 0-1

[Event "Late-Titled-Tuesday-Blitz-July-09-2024"]
[Site "Chess.com"]
[Date "2024.07.09"]
[Round "10"]
[White "bazar-wokzal"]
[Black "IlanSchnaider"]
[Result "1-0"]
[WhiteElo "2662"]
[BlackElo "2813"]
[TimeControl "180+1"]
[EndTime "15:53:11 PDT"]
[Termination "bazar-wokzal won by resignation"]

1. e4 {[%clk 0:03:00.9]} 1... e5 {[%clk 0:02:58.9]} 2. Bc4 {[%clk 0:02:59.6]}
2... Nf6 {[%clk 0:02:58.4]} 3. d3 {[%clk 0:02:59.2]} 3... c6 {[%clk 0:02:58]} 4.
Nf3 {[%clk 0:02:59.2]} 4... Be7 {[%clk 0:02:57.2]} 5. O-O {[%clk 0:02:57]} 5...
Qc7 {[%clk 0:02:53.8]} 6. Nc3 {[%clk 0:02:53.8]} 6... O-O {[%clk 0:02:53.2]} 7.
a4 {[%clk 0:02:53.5]} 7... d6 {[%clk 0:02:52.9]} 8. h3 {[%clk 0:02:51.3]} 8...
Be6 {[%clk 0:02:42.3]} 9. Bxe6 {[%clk 0:02:50.7]} 9... fxe6 {[%clk 0:02:43.2]}
10. d4 {[%clk 0:02:51.2]} 10... exd4 {[%clk 0:02:40]} 11. Nxd4 {[%clk
0:02:51.4]} 11... Qd7 {[%clk 0:02:36.8]} 12. f4 {[%clk 0:02:51]} 12... Na6
{[%clk 0:02:21.9]} 13. Qe2 {[%clk 0:02:41.5]} 13... Nc5 {[%clk 0:02:09.1]} 14.
b4 {[%clk 0:02:29.7]} 14... Na6 {[%clk 0:02:08.9]} 15. Ba3 {[%clk 0:02:23.1]}
15... e5 {[%clk 0:02:07.2]} 16. Nf5 {[%clk 0:02:12.7]} 16... Rfe8 {[%clk
0:01:41.3]} 17. b5 {[%clk 0:02:10.7]} 17... cxb5 {[%clk 0:01:03.8]} 18. axb5
{[%clk 0:02:08.4]} 18... Nc5 {[%clk 0:00:47.1]} 19. Bxc5 {[%clk 0:02:07.4]}
19... dxc5 {[%clk 0:00:47.1]} 20. fxe5 {[%clk 0:02:07.8]} 20... Rad8 {[%clk
0:00:27.7]} 21. Qc4+ {[%clk 0:01:48.3]} 21... Kh8 {[%clk 0:00:27]} 22. Rad1
{[%clk 0:01:43.1]} 22... Qc7 {[%clk 0:00:22.1]} 23. exf6 {[%clk 0:01:29.2]}
23... Bxf6 {[%clk 0:00:21.9]} 24. Nd5 {[%clk 0:01:28.3]} 24... Qe5 {[%clk
0:00:21.2]} 25. Nxf6 {[%clk 0:01:25.8]} 25... Qxf6 {[%clk 0:00:21.1]} 26. Rxd8
{[%clk 0:01:15.5]} 26... Qxd8 {[%clk 0:00:14.8]} 27. Qxc5 {[%clk 0:01:06.5]}
27... b6 {[%clk 0:00:15.1]} 28. Qc3 {[%clk 0:01:04.2]} 28... Qg5 {[%clk
0:00:15.1]} 29. Rf3 {[%clk 0:01:01.5]} 29... Rg8 {[%clk 0:00:09.1]} 30. Rg3
{[%clk 0:00:59.3]} 30... Qf4 {[%clk 0:00:03.8]} 31. Rxg7 {[%clk 0:00:54.8]}
31... Qc1+ {[%clk 0:00:03.9]} 32. Kh2 {[%clk 0:00:54]} 32... Qf4+ {[%clk
0:00:02.7]} 33. Rg3+ {[%clk 0:00:53]} 1-0

[Event "Late-Titled-Tuesday-Blitz-July-09-2024"]
[Site "Chess.com"]
[Date "2024.07.09"]
[Round "10"]
[White "Djager97"]
[Black "MusicCityMaster"]
[Result "1-0"]
[WhiteElo "2636"]
[BlackElo "2504"]
[TimeControl "180+1"]
[EndTime "15:53:15 PDT"]
[Termination "Djager97 won by checkmate"]

1. e4 {[%clk 0:03:00.9]} 1... c5 {[%clk 0:02:58.4]} 2. Nf3 {[%clk 0:03:00.2]}
2... d6 {[%clk 0:02:58.7]} 3. d4 {[%clk 0:03:00]} 3... cxd4 {[%clk 0:02:59.6]}
4. Nxd4 {[%clk 0:03:00.5]} 4... Nf6 {[%clk 0:03:00.3]} 5. Nc3 {[%clk 0:03:00.7]}
5... a6 {[%clk 0:03:00.9]} 6. Bg5 {[%clk 0:03:01]} 6... e6 {[%clk 0:03:00.5]} 7.
Qe2 {[%clk 0:03:00.7]} 7... Nbd7 {[%clk 0:02:58.2]} 8. O-O-O {[%clk 0:03:00.2]}
8... Qc7 {[%clk 0:02:58.2]} 9. g4 {[%clk 0:03:00.2]} 9... b5 {[%clk 0:02:57.4]}
10. a3 {[%clk 0:03:00.8]} 10... Bb7 {[%clk 0:02:57.3]} 11. Bg2 {[%clk
0:03:00.8]} 11... Be7 {[%clk 0:02:42.7]} 12. h4 {[%clk 0:02:59.3]} 12... Nc5
{[%clk 0:02:21.2]} 13. f4 {[%clk 0:02:53.5]} 13... h5 {[%clk 0:02:00.6]} 14.
Bxf6 {[%clk 0:02:49.6]} 14... Bxf6 {[%clk 0:01:57.5]} 15. g5 {[%clk 0:02:49.7]}
15... Be7 {[%clk 0:01:46.7]} 16. f5 {[%clk 0:02:09.1]} 16... e5 {[%clk
0:01:41.5]} 17. Nb3 {[%clk 0:01:05.4]} 17... Nxb3+ {[%clk 0:00:58.6]} 18. cxb3
{[%clk 0:01:06.3]} 18... O-O-O {[%clk 0:00:58.6]} 19. Kb1 {[%clk 0:01:04.5]}
19... Kb8 {[%clk 0:00:58.8]} 20. Nd5 {[%clk 0:01:00.2]} 20... Bxd5 {[%clk
0:00:56.7]} 21. exd5 {[%clk 0:01:01.1]} 21... Rc8 {[%clk 0:00:53.6]} 22. Rc1
{[%clk 0:01:01.3]} 22... Qb6 {[%clk 0:00:38]} 23. Rc6 {[%clk 0:01:00.4]} 23...
Rxc6 {[%clk 0:00:37.8]} 24. dxc6 {[%clk 0:01:01.3]} 24... f6 {[%clk 0:00:21.3]}
25. Rc1 {[%clk 0:00:55.7]} 25... Rc8 {[%clk 0:00:18.7]} 26. g6 {[%clk
0:00:54.8]} 26... Qd4 {[%clk 0:00:14.7]} 27. Ka2 {[%clk 0:00:50.4]} 27... d5
{[%clk 0:00:12]} 28. Rd1 {[%clk 0:00:41.6]} 28... Qb6 {[%clk 0:00:10.9]} 29.
Bxd5 {[%clk 0:00:39.3]} 29... Bc5 {[%clk 0:00:11]} 30. Qxh5 {[%clk 0:00:32.5]}
30... Bd4 {[%clk 0:00:11.4]} 31. Qh7 {[%clk 0:00:30.7]} 31... Qc5 {[%clk
0:00:10.7]} 32. Qxg7 {[%clk 0:00:30.8]} 32... Qxd5 {[%clk 0:00:10.3]} 33. Qb7#
{[%clk 0:00:30.7]} 1-0

[Event "Late-Titled-Tuesday-Blitz-July-09-2024"]
[Site "Chess.com"]
[Date "2024.07.09"]
[Round "10"]
[White "ValeriyGrinev"]
[Black "Bauman_Guy"]
[Result "0-1"]
[WhiteElo "2710"]
[BlackElo "2923"]
[TimeControl "180+1"]
[EndTime "15:53:20 PDT"]
[Termination "Bauman_Guy won by resignation"]

1. d4 {[%clk 0:03:00.9]} 1... Nf6 {[%clk 0:02:59.8]} 2. c4 {[%clk 0:03:01]} 2...
e6 {[%clk 0:03:00.1]} 3. Nf3 {[%clk 0:03:01.3]} 3... b6 {[%clk 0:03:00]} 4. g3
{[%clk 0:03:01.2]} 4... Ba6 {[%clk 0:03:00.6]} 5. Nbd2 {[%clk 0:03:00.9]} 5...
Bb7 {[%clk 0:03:00.5]} 6. Bg2 {[%clk 0:03:00.8]} 6... Be7 {[%clk 0:03:01.2]} 7.
O-O {[%clk 0:03:00.9]} 7... O-O {[%clk 0:03:01.9]} 8. b3 {[%clk 0:03:00.9]} 8...
d5 {[%clk 0:03:00.2]} 9. Bb2 {[%clk 0:03:00.9]} 9... c5 {[%clk 0:02:59.4]} 10.
e3 {[%clk 0:03:00.8]} 10... Nc6 {[%clk 0:02:58.8]} 11. Qe2 {[%clk 0:03:00.6]}
11... Rc8 {[%clk 0:02:56.2]} 12. Rac1 {[%clk 0:03:00.1]} 12... Qc7 {[%clk
0:02:55.3]} 13. cxd5 {[%clk 0:02:59.3]} 13... exd5 {[%clk 0:02:54.7]} 14. dxc5
{[%clk 0:02:59.8]} 14... bxc5 {[%clk 0:02:52.2]} 15. Nh4 {[%clk 0:02:59.8]}
15... Qb6 {[%clk 0:02:29.9]} 16. Nf5 {[%clk 0:02:58.4]} 16... Ba6 {[%clk
0:02:27.1]} 17. Qf3 {[%clk 0:02:04.7]} 17... Bxf1 {[%clk 0:02:24.2]} 18. Nxf1
{[%clk 0:02:05.6]} 18... Rfe8 {[%clk 0:02:17.2]} 19. Qf4 {[%clk 0:01:52.9]}
19... d4 {[%clk 0:02:04]} 20. Qg5 {[%clk 0:01:47.9]} 20... g6 {[%clk 0:02:00.8]}
21. exd4 {[%clk 0:01:43.3]} 21... cxd4 {[%clk 0:01:34.5]} 22. Bxc6 {[%clk
0:01:39.9]} 22... Rxc6 {[%clk 0:01:28.1]} 23. Bxd4 {[%clk 0:01:39.7]} 23... Qa6
{[%clk 0:00:54.7]} 24. Rxc6 {[%clk 0:01:37.6]} 24... Qxc6 {[%clk 0:00:54.1]} 25.
Nxe7+ {[%clk 0:01:38.3]} 25... Rxe7 {[%clk 0:00:54.2]} 26. Bxf6 {[%clk
0:01:38.9]} 26... Re1 {[%clk 0:00:50.3]} 27. Bb2 {[%clk 0:01:30.9]} 27... Qd7
{[%clk 0:00:31.3]} 28. Qf6 {[%clk 0:01:27]} 28... Kf8 {[%clk 0:00:30.2]} 29.
Qh8+ {[%clk 0:01:23.4]} 29... Ke7 {[%clk 0:00:30.2]} 30. Bf6+ {[%clk 0:01:14.6]}
30... Ke6 {[%clk 0:00:22.5]} 31. Bg5 {[%clk 0:01:11.4]} 31... Rxf1+ {[%clk
0:00:08.7]} 32. Kxf1 {[%clk 0:01:12.3]} 32... Qd1+ {[%clk 0:00:08.7]} 33. Kg2
{[%clk 0:01:12]} 33... Qd5+ {[%clk 0:00:09.6]} 34. f3 {[%clk 0:00:59.9]} 34...
Qxg5 {[%clk 0:00:09.8]} 35. Qe8+ {[%clk 0:00:58]} 35... Kd6 {[%clk 0:00:09.6]}
36. Qxf7 {[%clk 0:00:57.3]} 36... Qd2+ {[%clk 0:00:09.1]} 37. Kh3 {[%clk
0:00:53.2]} 37... Qh6+ {[%clk 0:00:08.9]} 38. Kg4 {[%clk 0:00:52.1]} 38... Qh5+
{[%clk 0:00:09.1]} 39. Kf4 {[%clk 0:00:50.5]} 39... g5+ {[%clk 0:00:09.6]} 40.
Ke4 {[%clk 0:00:47.1]} 40... Qxf7 {[%clk 0:00:10.5]} 0-1